[Event "Live Chess"]
[Site "Chess.com"]
[Date "2011.01.13"]
[Round "-"]
[White "DavidEmery"]
[Black "hipposcottimus"]
[Result "0-1"]
[CurrentPosition "r5k1/pp4pp/4p2r/1q1p1pQ1/5b2/P5P1/1PP1RP2/4RK2 b - -"]
[Timezone "UTC"]
[ECO "D00"]
[ECOUrl "https://www.chess.com/openings/Queens-Pawn-Opening-Chigorin-Variation"]
[UTCDate "2011.01.13"]
[UTCTime "03:03:03"]
[WhiteElo "1522"]
[BlackElo "1358"]
[TimeControl "120+9"]
[Termination "hipposcottimus won by resignation"]
[StartTime "03:03:03"]
[EndDate "2011.01.13"]
[EndTime "03:12:04"]
[Link "https://www.chess.com/game/live/87014171"]

1. d4 {[%clk 0:02:00]} 1... d5 {[%clk 0:02:00]} 2. Nc3 {[%clk 0:02:07.5]} 2... Nd7 {[%clk 0:02:05.8]} 3. Bf4 {[%clk 0:02:14.5]} 3... c6 {[%clk 0:02:11.9]} 4. Nf3 {[%clk 0:02:21.4]} 4... f5 {[%clk 0:02:20.5]} 5. e3 {[%clk 0:02:27.6]} 5... e6 {[%clk 0:02:29.1]} 6. Bd3 {[%clk 0:02:34.6]} 6... Ngf6 {[%clk 0:02:36.1]} 7. Ne5 {[%clk 0:02:41.5]} 7... Bb4 {[%clk 0:02:44.7]} 8. Bg5 {[%clk 0:02:37.6]} 8... O-O {[%clk 0:02:47.6]} 9. O-O {[%clk 0:02:38]} 9... c5 {[%clk 0:02:53.4]} 10. Bb5 {[%clk 0:02:37.5]} 10... cxd4 {[%clk 0:02:57.2]} 11. exd4 {[%clk 0:02:41.1]} 11... Bd6 {[%clk 0:02:52.2]} 12. a3 {[%clk 0:02:38.4]} 12... Nxe5 {[%clk 0:02:54.8]} 13. Bxf6 {[%clk 0:02:39.1]} 13... Rxf6 {[%clk 0:02:57.2]} 14. dxe5 {[%clk 0:02:44.8]} 14... Bxe5 {[%clk 0:03:04.4]} 15. Re1 {[%clk 0:02:43.5]} 15... Qc7 {[%clk 0:03:09.4]} 16. Qh5 {[%clk 0:01:56.3]} 16... Bd6 {[%clk 0:02:00.7]} 17. Bd3 {[%clk 0:01:51.2]} 17... Bd7 {[%clk 0:01:57.2]} 18. Bb5 {[%clk 0:01:50.4]} 18... Rh6 {[%clk 0:01:53.3]} 19. Qg5 {[%clk 0:01:30.1]} 19... Bxb5 {[%clk 0:01:02.4]} 20. Nxb5 {[%clk 0:01:34.4]} 20... Bxh2+ {[%clk 0:01:08.2]} 21. Kf1 {[%clk 0:01:39]} 21... Qc4+ {[%clk 0:01:15.8]} 22. Re2 {[%clk 0:01:31.7]} 22... Qxb5 {[%clk 0:01:17.9]} 23. Re1 {[%clk 0:01:19]} 23... Bf4 {[%clk 0:01:01]} 24. g3 {[%clk 0:01:13.5]} 0-1

[Event "Live Chess"]
[Site "Chess.com"]
[Date "2011.01.13"]
[Round "-"]
[White "vavaldasnarender"]
[Black "hipposcottimus"]
[Result "0-1"]
[CurrentPosition "b6k/b5pp/p7/P4p2/1P3B2/4P1P1/3r1K1P/1R2NR1q w - -"]
[Timezone "UTC"]
[ECO "D00"]
[ECOUrl "https://www.chess.com/openings/Queens-Pawn-Opening-Mason-Attack"]
[UTCDate "2011.01.13"]
[UTCTime "00:58:39"]
[WhiteElo "1268"]
[BlackElo "1345"]
[TimeControl "300+5"]
[Termination "hipposcottimus won by checkmate"]
[StartTime "00:58:39"]
[EndDate "2011.01.13"]
[EndTime "01:09:22"]
[Link "https://www.chess.com/game/live/86986243"]

1. f4 {[%clk 0:05:00]} 1... d5 {[%clk 0:05:00]} 2. d4 {[%clk 0:05:02.1]} 2... f5 {[%clk 0:05:04.7]} 3. e3 {[%clk 0:05:05.2]} 3... e6 {[%clk 0:05:08.8]} 4. Nf3 {[%clk 0:05:07.4]} 4... c5 {[%clk 0:05:12.8]} 5. c3 {[%clk 0:05:08.7]} 5... cxd4 {[%clk 0:05:17]} 6. cxd4 {[%clk 0:05:10.8]} 6... Nc6 {[%clk 0:05:21.7]} 7. Bd3 {[%clk 0:05:13.5]} 7... Bb4+ {[%clk 0:05:21.6]} 8. Nc3 {[%clk 0:05:13.9]} 8... Nf6 {[%clk 0:05:23.6]} 9. O-O {[%clk 0:05:16.4]} 9... O-O {[%clk 0:05:26.4]} 10. Ne5 {[%clk 0:05:17.8]} 10... Nxe5 {[%clk 0:05:26.2]} 11. fxe5 {[%clk 0:05:20.1]} 11... Ng4 {[%clk 0:04:55.5]} 12. Qf3 {[%clk 0:05:07.7]} 12... Qc7 {[%clk 0:04:25.7]} 13. Ne2 {[%clk 0:04:53.5]} 13... Nxe5 {[%clk 0:04:25]} 14. dxe5 {[%clk 0:04:51.8]} 14... Qxe5 {[%clk 0:04:28.2]} 15. Nd4 {[%clk 0:04:35.7]} 15... Qf6 {[%clk 0:04:28.5]} 16. Nc2 {[%clk 0:04:23.5]} 16... Bc5 {[%clk 0:04:27.4]} 17. b4 {[%clk 0:04:18.3]} 17... Bb6 {[%clk 0:04:29.1]} 18. a4 {[%clk 0:04:14.4]} 18... a6 {[%clk 0:04:30.3]} 19. a5 {[%clk 0:04:15.7]} 19... Ba7 {[%clk 0:04:32.7]} 20. Rb1 {[%clk 0:04:16.9]} 20... e5 {[%clk 0:04:32.6]} 21. Qxd5+ {[%clk 0:04:08.2]} 21... Kh8 {[%clk 0:04:29]} 22. Bb2 {[%clk 0:04:08.8]} 22... Rd8 {[%clk 0:04:06.9]} 23. Qc4 {[%clk 0:03:42]} 23... Be6 {[%clk 0:04:02.7]} 24. Qc7 {[%clk 0:03:25.1]} 24... Rxd3 {[%clk 0:03:58.1]} 25. Bxe5 {[%clk 0:03:19.7]} 25... Qg5 {[%clk 0:03:11.4]} 26. Bf4 {[%clk 0:03:10.9]} 26... Qg6 {[%clk 0:02:56.8]} 27. Qxb7 {[%clk 0:03:11.4]} 27... Bd5 {[%clk 0:02:57.4]} 28. Qxa8+ {[%clk 0:02:25.9]} 28... Bxa8 {[%clk 0:02:48.1]} 29. g3 {[%clk 0:02:26.6]} 29... Qc6 {[%clk 0:02:46.7]} 30. Ne1 {[%clk 0:02:14.6]} 30... Qh1+ {[%clk 0:02:30.2]} 31. Kf2 {[%clk 0:02:09.2]} 31... Rd2# {[%clk 0:02:33.3]} 0-1

[Event "Live Chess"]
[Site "Chess.com"]
[Date "2011.01.13"]
[Round "-"]
[White "hipposcottimus"]
[Black "vavaldasnarender"]
[Result "1-0"]
[CurrentPosition "2r1k1R1/1R5p/2rBp3/2PpPp2/p4P2/P6P/8/6K1 b - -"]
[Timezone "UTC"]
[ECO "C00"]
[ECOUrl "https://www.chess.com/openings/French-Defense-Normal-Variation"]
[UTCDate "2011.01.13"]
[UTCTime "00:43:22"]
[WhiteElo "1345"]
[BlackElo "1268"]
[TimeControl "300+5"]
[Termination "hipposcottimus won by checkmate"]
[StartTime "00:43:22"]
[EndDate "2011.01.13"]
[EndTime "00:57:23"]
[Link "https://www.chess.com/game/live/86982391"]

1. e4 {[%clk 0:05:00]} 1... e6 {[%clk 0:05:00]} 2. d4 {[%clk 0:05:03.7]} 2... c6 {[%clk 0:05:02]} 3. c4 {[%clk 0:05:07.1]} 3... d5 {[%clk 0:05:01.7]} 4. cxd5 {[%clk 0:05:07.2]} 4... cxd5 {[%clk 0:05:04.4]} 5. e5 {[%clk 0:05:07.5]} 5... f5 {[%clk 0:05:04.2]} 6. Qh5+ {[%clk 0:04:48.9]} 6... g6 {[%clk 0:05:04.7]} 7. Qd1 {[%clk 0:04:50.5]} 7... Ne7 {[%clk 0:05:06]} 8. Nc3 {[%clk 0:04:53.4]} 8... Bg7 {[%clk 0:05:07.5]} 9. f4 {[%clk 0:04:57.2]} 9... O-O {[%clk 0:05:09.4]} 10. Nf3 {[%clk 0:05:01.2]} 10... Nec6 {[%clk 0:05:11.6]} 11. Be2 {[%clk 0:05:02.5]} 11... Na6 {[%clk 0:05:05.3]} 12. Bxa6 {[%clk 0:05:03.3]} 12... bxa6 {[%clk 0:05:07]} 13. O-O {[%clk 0:05:05.3]} 13... Nb4 {[%clk 0:05:08.8]} 14. a3 {[%clk 0:05:04.1]} 14... Nc6 {[%clk 0:05:07.8]} 15. Ng5 {[%clk 0:05:02]} 15... Bh6 {[%clk 0:05:06.6]} 16. Nh3 {[%clk 0:05:05.1]} 16... Qb6 {[%clk 0:05:03.9]} 17. Be3 {[%clk 0:05:07.6]} 17... a5 {[%clk 0:04:50.2]} 18. Na4 {[%clk 0:05:09.5]} 18... Qb5 {[%clk 0:04:48.9]} 19. Nc5 {[%clk 0:04:35.3]} 19... Qxb2 {[%clk 0:04:42.7]} 20. Qa4 {[%clk 0:04:16.6]} 20... Ne7 {[%clk 0:04:18]} 21. Qxa5 {[%clk 0:04:13.1]} 21... Qb6 {[%clk 0:04:05.9]} 22. Qd2 {[%clk 0:03:51.2]} 22... Nc6 {[%clk 0:04:03.5]} 23. Qf2 {[%clk 0:03:52.3]} 23... a5 {[%clk 0:03:58.2]} 24. Qg3 {[%clk 0:03:48.2]} 24... a4 {[%clk 0:03:48.8]} 25. Ng5 {[%clk 0:03:50.4]} 25... Bxg5 {[%clk 0:03:49.6]} 26. Qxg5 {[%clk 0:03:50.8]} 26... Na5 {[%clk 0:03:43]} 27. Qe7 {[%clk 0:03:47]} 27... Nc4 {[%clk 0:03:32.9]} 28. Bf2 {[%clk 0:03:42.2]} 28... Qd8 {[%clk 0:03:14.2]} 29. Bh4 {[%clk 0:03:13.9]} 29... Qxe7 {[%clk 0:03:15.2]} 30. Bxe7 {[%clk 0:03:16.5]} 30... Re8 {[%clk 0:03:18.1]} 31. Bf6 {[%clk 0:03:18]} 31... Nd2 {[%clk 0:03:02.2]} 32. Rf2 {[%clk 0:03:02.5]} 32... Nb3 {[%clk 0:02:59.6]} 33. Rd1 {[%clk 0:02:49.5]} 33... Nxc5 {[%clk 0:02:58.5]} 34. dxc5 {[%clk 0:02:50.3]} 34... Bd7 {[%clk 0:02:56.8]} 35. Rd4 {[%clk 0:02:42.6]} 35... Rec8 {[%clk 0:02:58.9]} 36. Be7 {[%clk 0:02:15]} 36... Kf7 {[%clk 0:02:51.8]} 37. Bd6 {[%clk 0:02:16.5]} 37... Bc6 {[%clk 0:02:51.9]} 38. Rb4 {[%clk 0:02:09.5]} 38... Ra6 {[%clk 0:02:46.2]} 39. h3 {[%clk 0:01:49.5]} 39... Rca8 {[%clk 0:02:47.3]} 40. g4 {[%clk 0:01:46.6]} 40... Bb5 {[%clk 0:02:45.6]} 41. Rxb5 {[%clk 0:01:45]} 41... Rc6 {[%clk 0:02:12]} 42. gxf5 {[%clk 0:01:41.5]} 42... gxf5 {[%clk 0:02:10.1]} 43. Rg2 {[%clk 0:01:45.2]} 43... Rac8 {[%clk 0:02:05.1]} 44. Rb7+ {[%clk 0:01:47]} 44... Ke8 {[%clk 0:01:57.6]} 45. Rg8# {[%clk 0:01:49]} 1-0

[Event "Live Chess"]
[Site "Chess.com"]
[Date "2011.01.13"]
[Round "-"]
[White "SueV"]
[Black "hipposcottimus"]
[Result "0-1"]
[CurrentPosition "r4rk1/pp3ppp/2n2n2/1BR5/N7/8/PPP2KPP/R1Bqq3 w - -"]
[Timezone "UTC"]
[ECO "A00"]
[ECOUrl "https://www.chess.com/openings/Vant-Kruijs-Opening-1...e5"]
[UTCDate "2011.01.13"]
[UTCTime "00:28:04"]
[WhiteElo "925"]
[BlackElo "1345"]
[TimeControl "120+15"]
[Termination "hipposcottimus won by checkmate"]
[StartTime "00:28:04"]
[EndDate "2011.01.13"]
[EndTime "00:33:38"]
[Link "https://www.chess.com/game/live/86979223"]

1. e3 {[%clk 0:02:00]} 1... e5 {[%clk 0:02:00]} 2. Nf3 {[%clk 0:02:05.6]} 2... e4 {[%clk 0:02:14.4]} 3. Nd4 {[%clk 0:02:16.8]} 3... c5 {[%clk 0:02:27]} 4. Nf5 {[%clk 0:02:24.9]} 4... d5 {[%clk 0:02:33.1]} 5. d4 {[%clk 0:02:32.4]} 5... Bxf5 {[%clk 0:02:44.8]} 6. dxc5 {[%clk 0:02:43.9]} 6... Bxc5 {[%clk 0:02:59.4]} 7. Bb5+ {[%clk 0:02:46.6]} 7... Nc6 {[%clk 0:03:10.6]} 8. O-O {[%clk 0:02:58.4]} 8... Nf6 {[%clk 0:03:21.3]} 9. Nc3 {[%clk 0:03:07]} 9... O-O {[%clk 0:03:29.5]} 10. f4 {[%clk 0:03:06.7]} 10... exf3 {[%clk 0:03:36.7]} 11. Rxf3 {[%clk 0:03:14.5]} 11... d4 {[%clk 0:03:17.2]} 12. Na4 {[%clk 0:02:47.3]} 12... dxe3 {[%clk 0:03:02]} 13. Rxf5 {[%clk 0:02:58.2]} 13... e2+ {[%clk 0:03:11.6]} 14. Rxc5 {[%clk 0:02:37.7]} 14... Qxd1+ {[%clk 0:03:09.9]} 15. Kf2 {[%clk 0:02:47.9]} 15... e1=Q# {[%clk 0:03:16]} 0-1

[Event "Live Chess"]
[Site "Chess.com"]
[Date "2011.01.13"]
[Round "-"]
[White "hipposcottimus"]
[Black "kikolol"]
[Result "1-0"]
[CurrentPosition "r4k2/1p4p1/p3Qnqp/2BP4/P7/1P4P1/6PP/R5K1 b - -"]
[Timezone "UTC"]
[ECO "B01"]
[ECOUrl "https://www.chess.com/openings/Scandinavian-Defense-Mieses-Kotrc-Variation-3.Nc3"]
[UTCDate "2011.01.13"]
[UTCTime "00:12:36"]
[WhiteElo "1344"]
[BlackElo "1220"]
[TimeControl "600"]
[Termination "hipposcottimus won by checkmate"]
[StartTime "00:12:36"]
[EndDate "2011.01.13"]
[EndTime "00:19:35"]
[Link "https://www.chess.com/game/live/86975174"]

1. e4 {[%clk 0:10:00]} 1... d5 {[%clk 0:10:00]} 2. exd5 {[%clk 0:09:57.4]} 2... Qxd5 {[%clk 0:09:58.4]} 3. Nc3 {[%clk 0:09:56.2]} 3... Qe6+ {[%clk 0:09:57]} 4. Be2 {[%clk 0:09:53.5]} 4... h6 {[%clk 0:09:55.1]} 5. d4 {[%clk 0:09:50.9]} 5... c6 {[%clk 0:09:53.2]} 6. Nf3 {[%clk 0:09:45.3]} 6... a6 {[%clk 0:09:51]} 7. a4 {[%clk 0:09:37.6]} 7... Qg6 {[%clk 0:09:47.2]} 8. O-O {[%clk 0:09:15.5]} 8... Bh3 {[%clk 0:09:42.4]} 9. Nh4 {[%clk 0:09:06.5]} 9... Qf6 {[%clk 0:09:21.4]} 10. Bg4 {[%clk 0:08:47.5]} 10... Qxh4 {[%clk 0:09:15.5]} 11. Bxh3 {[%clk 0:08:45]} 11... e6 {[%clk 0:09:09.9]} 12. Ne2 {[%clk 0:08:13.3]} 12... Bd6 {[%clk 0:09:00.6]} 13. Ng3 {[%clk 0:08:04.2]} 13... Nf6 {[%clk 0:08:49.6]} 14. c4 {[%clk 0:07:31.8]} 14... Bxg3 {[%clk 0:08:42.4]} 15. fxg3 {[%clk 0:07:26.5]} 15... Qe4 {[%clk 0:08:39.4]} 16. Re1 {[%clk 0:07:20]} 16... Qg6 {[%clk 0:08:19.2]} 17. Bxe6 {[%clk 0:07:13]} 17... fxe6 {[%clk 0:08:13.3]} 18. Rxe6+ {[%clk 0:07:10.8]} 18... Kf7 {[%clk 0:08:10.3]} 19. d5 {[%clk 0:07:07.6]} 19... Re8 {[%clk 0:08:04.2]} 20. Qe2 {[%clk 0:06:57]} 20... cxd5 {[%clk 0:07:58.5]} 21. cxd5 {[%clk 0:06:41.8]} 21... Rxe6 {[%clk 0:07:47.6]} 22. Qxe6+ {[%clk 0:06:34.6]} 22... Kf8 {[%clk 0:07:45.7]} 23. b3 {[%clk 0:06:14.5]} 23... Nbd7 {[%clk 0:07:35.6]} 24. Ba3+ {[%clk 0:06:09.6]} 24... Nc5 {[%clk 0:07:05.4]} 25. Bxc5# {[%clk 0:06:08.7]} 1-0

[Event "Live Chess"]
[Site "Chess.com"]
[Date "2011.01.12"]
[Round "-"]
[White "hipposcottimus"]
[Black "cerecedes"]
[Result "1-0"]
[CurrentPosition "2r1kb1r/3Qnppp/p7/1B2P3/7N/8/PP3PPP/5RK1 b k -"]
[Timezone "UTC"]
[ECO "C40"]
[ECOUrl "https://www.chess.com/openings/Kings-Pawn-Opening-Kings-Knight-McConnell-Defense"]
[UTCDate "2011.01.12"]
[UTCTime "23:56:29"]
[WhiteElo "1339"]
[BlackElo "1341"]
[TimeControl "360"]
[Termination "hipposcottimus won by checkmate"]
[StartTime "23:56:29"]
[EndDate "2011.01.12"]
[EndTime "23:59:18"]
[Link "https://www.chess.com/game/live/86971374"]

1. e4 {[%clk 0:06:00]} 1... e5 {[%clk 0:06:00]} 2. Nf3 {[%clk 0:05:57.7]} 2... Qf6 {[%clk 0:05:51.6]} 3. Nc3 {[%clk 0:05:53.8]} 3... c6 {[%clk 0:05:49.7]} 4. d4 {[%clk 0:05:48]} 4... exd4 {[%clk 0:05:47.7]} 5. e5 {[%clk 0:05:45.7]} 5... Qg6 {[%clk 0:05:42.9]} 6. Qxd4 {[%clk 0:05:37.8]} 6... Ne7 {[%clk 0:05:39.9]} 7. Nh4 {[%clk 0:05:21.7]} 7... Qxc2 {[%clk 0:05:36]} 8. Bd3 {[%clk 0:05:16.6]} 8... Qxc1+ {[%clk 0:05:10.3]} 9. Rxc1 {[%clk 0:05:13.9]} 9... b5 {[%clk 0:05:04.1]} 10. O-O {[%clk 0:05:10.3]} 10... Na6 {[%clk 0:04:58.9]} 11. Nxb5 {[%clk 0:05:02.4]} 11... cxb5 {[%clk 0:04:56.2]} 12. Bxb5 {[%clk 0:04:59.5]} 12... Nc7 {[%clk 0:04:54.5]} 13. Rxc7 {[%clk 0:04:55.8]} 13... a6 {[%clk 0:04:32.7]} 14. Rxc8+ {[%clk 0:04:51.7]} 14... Rxc8 {[%clk 0:04:28.2]} 15. Qxd7# {[%clk 0:04:50.6]} 1-0

[Event "Live Chess"]
[Site "Chess.com"]
[Date "2011.01.12"]
[Round "-"]
[White "TDHeller"]
[Black "hipposcottimus"]
[Result "0-1"]
[CurrentPosition "7k/1p5p/8/8/pr6/6PK/8/8 w - -"]
[Timezone "UTC"]
[ECO "A03"]
[ECOUrl "https://www.chess.com/openings/Birds-Opening-Dutch-Variation-2.Nf3"]
[UTCDate "2011.01.12"]
[UTCTime "23:41:49"]
[WhiteElo "1263"]
[BlackElo "1339"]
[TimeControl "240+4"]
[Termination "hipposcottimus won by resignation"]
[StartTime "23:41:49"]
[EndDate "2011.01.12"]
[EndTime "23:54:06"]
[Link "https://www.chess.com/game/live/86967706"]

1. f4 {[%clk 0:04:00]} 1... d5 {[%clk 0:04:00]} 2. Nf3 {[%clk 0:04:01.3]} 2... Bf5 {[%clk 0:04:03.7]} 3. Nc3 {[%clk 0:04:02.9]} 3... Nf6 {[%clk 0:04:05.4]} 4. b3 {[%clk 0:04:05.6]} 4... Nbd7 {[%clk 0:04:07.5]} 5. Bb2 {[%clk 0:04:08.4]} 5... c5 {[%clk 0:04:11.1]} 6. e3 {[%clk 0:04:06.4]} 6... Bg4 {[%clk 0:04:09.1]} 7. Be2 {[%clk 0:04:07.3]} 7... Bxf3 {[%clk 0:04:04.9]} 8. Bxf3 {[%clk 0:04:07.6]} 8... e5 {[%clk 0:04:08]} 9. fxe5 {[%clk 0:04:03.5]} 9... Nxe5 {[%clk 0:04:10.3]} 10. O-O {[%clk 0:04:04.8]} 10... Be7 {[%clk 0:04:12]} 11. Nb5 {[%clk 0:03:50.4]} 11... Nxf3+ {[%clk 0:04:04.5]} 12. Rxf3 {[%clk 0:03:49.5]} 12... O-O {[%clk 0:04:08.2]} 13. c4 {[%clk 0:03:39.4]} 13... Ne4 {[%clk 0:03:51]} 14. Bxg7 {[%clk 0:03:37.8]} 14... Kxg7 {[%clk 0:03:48.8]} 15. d3 {[%clk 0:03:36.6]} 15... Ng5 {[%clk 0:03:20.9]} 16. Rg3 {[%clk 0:03:37.1]} 16... Kh8 {[%clk 0:03:24.1]} 17. Qh5 {[%clk 0:03:22.1]} 17... Rg8 {[%clk 0:02:57.8]} 18. Rf1 {[%clk 0:03:03.9]} 18... f6 {[%clk 0:02:50.7]} 19. cxd5 {[%clk 0:03:00.4]} 19... Qxd5 {[%clk 0:02:37.8]} 20. Nc7 {[%clk 0:03:00.9]} 20... Qxd3 {[%clk 0:02:32.9]} 21. Nxa8 {[%clk 0:03:00.2]} 21... Rxa8 {[%clk 0:02:28]} 22. Rg4 {[%clk 0:02:37.7]} 22... Qxe3+ {[%clk 0:02:24]} 23. Kh1 {[%clk 0:02:34.7]} 23... Re8 {[%clk 0:02:15.5]} 24. h4 {[%clk 0:02:36.5]} 24... Bd8 {[%clk 0:02:07]} 25. hxg5 {[%clk 0:02:30.3]} 25... fxg5 {[%clk 0:01:51.2]} 26. Rf3 {[%clk 0:02:07.1]} 26... Qe1+ {[%clk 0:01:46]} 27. Kh2 {[%clk 0:02:09.6]} 27... Bc7+ {[%clk 0:01:47.8]} 28. Rfg3 {[%clk 0:01:56.7]} 28... Bxg3+ {[%clk 0:01:30.2]} 29. Rxg3 {[%clk 0:01:47.4]} 29... Qe5 {[%clk 0:01:28.9]} 30. Kh1 {[%clk 0:01:32.9]} 30... Qa1+ {[%clk 0:00:56]} 31. Kh2 {[%clk 0:01:33.1]} 31... Qe5 {[%clk 0:00:34.1]} 32. Kh1 {[%clk 0:01:13.6]} 32... Rg8 {[%clk 0:00:30.9]} 33. Qh2 {[%clk 0:00:59.9]} 33... Qa1+ {[%clk 0:00:22.4]} 34. Qg1 {[%clk 0:01:01.7]} 34... Qxa2 {[%clk 0:00:25.9]} 35. Qxc5 {[%clk 0:00:59.8]} 35... Qd2 {[%clk 0:00:20.6]} 36. Qe5+ {[%clk 0:00:58.1]} 36... Rg7 {[%clk 0:00:22.2]} 37. Qe8+ {[%clk 0:00:59.8]} 37... Rg8 {[%clk 0:00:25.4]} 38. Qe5+ {[%clk 0:01:01.2]} 38... Rg7 {[%clk 0:00:28.1]} 39. Rxg5 {[%clk 0:01:03.2]} 39... Qxg5 {[%clk 0:00:29.9]} 40. Qxg5 {[%clk 0:01:02.3]} 40... Rxg5 {[%clk 0:00:33.6]} 41. Kh2 {[%clk 0:01:04]} 41... Rb5 {[%clk 0:00:37.3]} 42. b4 {[%clk 0:01:05.6]} 42... Rxb4 {[%clk 0:00:39.3]} 43. g3 {[%clk 0:01:08.2]} 43... a5 {[%clk 0:00:43]} 44. Kh3 {[%clk 0:01:11.1]} 44... a4 {[%clk 0:00:46.7]} 0-1

[Event "Live Chess"]
[Site "Chess.com"]
[Date "2011.01.12"]
[Round "-"]
[White "vavaldasnarender"]
[Black "hipposcottimus"]
[Result "0-1"]
[CurrentPosition "7k/1Q5p/4p3/3pP3/1P1K1P2/6r1/5q2/8 w - -"]
[Timezone "UTC"]
[ECO "D00"]
[ECOUrl "https://www.chess.com/openings/Queens-Pawn-Opening-Mason-Attack"]
[UTCDate "2011.01.12"]
[UTCTime "23:24:11"]
[WhiteElo "1268"]
[BlackElo "1332"]
[TimeControl "300+5"]
[Termination "hipposcottimus won by checkmate"]
[StartTime "23:24:11"]
[EndDate "2011.01.12"]
[EndTime "23:37:35"]
[Link "https://www.chess.com/game/live/86963068"]

1. f4 {[%clk 0:05:00]} 1... d5 {[%clk 0:05:00]} 2. d4 {[%clk 0:05:01.7]} 2... f5 {[%clk 0:04:59.8]} 3. e3 {[%clk 0:05:04.2]} 3... Nc6 {[%clk 0:05:01.9]} 4. Bd3 {[%clk 0:05:06.6]} 4... Nb4 {[%clk 0:04:50.4]} 5. Nf3 {[%clk 0:05:07.8]} 5... Nxd3+ {[%clk 0:04:52.3]} 6. Qxd3 {[%clk 0:05:10.1]} 6... e6 {[%clk 0:04:56.2]} 7. O-O {[%clk 0:05:12.6]} 7... Nf6 {[%clk 0:04:56]} 8. Qe2 {[%clk 0:05:16.3]} 8... c5 {[%clk 0:04:59.3]} 9. c3 {[%clk 0:05:17.8]} 9... cxd4 {[%clk 0:05:02.3]} 10. cxd4 {[%clk 0:05:20.6]} 10... Bd6 {[%clk 0:05:03.7]} 11. Ne5 {[%clk 0:05:20.1]} 11... Bxe5 {[%clk 0:05:07.8]} 12. fxe5 {[%clk 0:05:22.8]} 12... Ne4 {[%clk 0:05:12.6]} 13. Nd2 {[%clk 0:05:25.8]} 13... Ng5 {[%clk 0:05:11.1]} 14. Nf3 {[%clk 0:05:22.7]} 14... Ne4 {[%clk 0:05:14.1]} 15. Nh4 {[%clk 0:05:22.5]} 15... Qxh4 {[%clk 0:05:16.5]} 16. Qb5+ {[%clk 0:05:12.1]} 16... Bd7 {[%clk 0:05:16.8]} 17. Qxb7 {[%clk 0:05:14.4]} 17... Rd8 {[%clk 0:05:21.5]} 18. Qxa7 {[%clk 0:05:14.4]} 18... O-O {[%clk 0:05:24.8]} 19. Qa5 {[%clk 0:05:01.5]} 19... Rb8 {[%clk 0:05:20]} 20. Qe1 {[%clk 0:04:59]} 20... Qh6 {[%clk 0:05:13.9]} 21. Rf4 {[%clk 0:04:41.2]} 21... g5 {[%clk 0:05:07.3]} 22. Rf1 {[%clk 0:04:40.3]} 22... Bb5 {[%clk 0:05:00.5]} 23. a4 {[%clk 0:04:26.1]} 23... Bxf1 {[%clk 0:05:02.4]} 24. Qxf1 {[%clk 0:04:29.4]} 24... f4 {[%clk 0:04:52.8]} 25. exf4 {[%clk 0:04:30.9]} 25... gxf4 {[%clk 0:04:56.4]} 26. a5 {[%clk 0:04:20.9]} 26... Ng3 {[%clk 0:04:56.5]} 27. Qf3 {[%clk 0:03:57.8]} 27... Rb4 {[%clk 0:03:43.7]} 28. hxg3 {[%clk 0:03:51.2]} 28... Rxd4 {[%clk 0:03:16.1]} 29. Qg4+ {[%clk 0:03:44.8]} 29... Kh8 {[%clk 0:03:13.4]} 30. gxf4 {[%clk 0:03:39.8]} 30... Rg8 {[%clk 0:02:21.9]} 31. Qf3 {[%clk 0:03:32.6]} 31... Rc4 {[%clk 0:02:00.3]} 32. a6 {[%clk 0:03:19.8]} 32... Rgc8 {[%clk 0:01:20.9]} 33. a7 {[%clk 0:03:20.5]} 33... Rxc1+ {[%clk 0:01:21.6]} 34. Rxc1 {[%clk 0:03:14.8]} 34... Rxc1+ {[%clk 0:01:24.5]} 35. Kf2 {[%clk 0:03:16.4]} 35... Ra1 {[%clk 0:00:58.7]} 36. g3 {[%clk 0:02:57.7]} 36... Rxa7 {[%clk 0:00:54.3]} 37. Qb3 {[%clk 0:03:01.4]} 37... Ra8 {[%clk 0:00:55]} 38. Qb7 {[%clk 0:03:01.8]} 38... Rg8 {[%clk 0:00:58.2]} 39. b4 {[%clk 0:02:43.6]} 39... Qh2+ {[%clk 0:01:01.9]} 40. Ke3 {[%clk 0:02:43.1]} 40... Rxg3+ {[%clk 0:01:05.2]} 41. Kd4 {[%clk 0:02:37.3]} 41... Qf2# {[%clk 0:01:09.3]} 0-1